[Event "Live Chess"]
[Site "Chess.com"]
[Date "2023.05.20"]
[Round "-"]
[White "mattlirious"]
[Black "Ferrarifan27"]
[Result "1-0"]
[WhiteElo "1332"]
[BlackElo "2080"]
[TimeControl "300"]
[EndTime "12:16:28 PDT"]
[Termination "mattlirious won by checkmate"]

1. e4 {[%clk 0:04:57.3]} 1... e5 {[%clk 0:04:58.9]} 2. Nf3 {[%clk 0:04:56.1]}
2... Nc6 {[%clk 0:04:58.5]} 3. Bc4 {[%clk 0:04:54.3]} 3... Nd4 {[%clk
0:04:55.9]} 4. Nxd4 {[%clk 0:04:51.6]} 4... exd4 {[%clk 0:04:53.9]} 5. d3 {[%clk
0:04:50.9]} 5... d6 {[%clk 0:04:49.8]} 6. O-O {[%clk 0:04:49.1]} 6... Nf6 {[%clk
0:04:48.1]} 7. Nd2 {[%clk 0:04:47]} 7... Be7 {[%clk 0:04:47.2]} 8. Nf3 {[%clk
0:04:45.2]} 8... c5 {[%clk 0:04:45.8]} 9. Bg5 {[%clk 0:04:41.6]} 9... O-O {[%clk
0:04:44.4]} 10. a3 {[%clk 0:04:35.2]} 10... h6 {[%clk 0:04:42]} 11. Bd2 {[%clk
0:04:29.5]} 11... Be6 {[%clk 0:04:41]} 12. Bxe6 {[%clk 0:04:15.5]} 12... fxe6
{[%clk 0:04:40.9]} 13. b4 {[%clk 0:04:10.4]} 13... b6 {[%clk 0:04:31.2]} 14. e5
{[%clk 0:04:04.8]} 14... dxe5 {[%clk 0:04:27.7]} 15. Nxe5 {[%clk 0:04:03.5]}
15... Nd5 {[%clk 0:04:23.2]} 16. Qe2 {[%clk 0:03:51.5]} 16... Bd6 {[%clk
0:04:05.9]} 17. Ng6 {[%clk 0:03:39.6]} 17... Rf6 {[%clk 0:04:03.9]} 18. bxc5
{[%clk 0:03:26.2]} 18... Bxh2+ {[%clk 0:03:53.6]} 19. Kxh2 {[%clk 0:03:19.9]}
19... Rxg6 {[%clk 0:03:52.9]} 20. g3 {[%clk 0:03:09.3]} 20... bxc5 {[%clk
0:03:50.4]} 21. Rfe1 {[%clk 0:03:00]} 21... Qf6 {[%clk 0:03:45.2]} 22. Kg2
{[%clk 0:02:48.5]} 22... Rf8 {[%clk 0:03:41.2]} 23. Rh1 {[%clk 0:02:37.1]} 23...
Qf5 {[%clk 0:03:17.5]} 24. Rh5 {[%clk 0:02:23.4]} 24... Qf6 {[%clk 0:03:14.2]}
25. Re5 {[%clk 0:01:51.5]} 25... Qf7 {[%clk 0:03:06.2]} 26. Re1 {[%clk
0:01:49.4]} 26... Rf6 {[%clk 0:03:02.2]} 27. f4 {[%clk 0:01:39.8]} 27... Re8
{[%clk 0:02:47.1]} 28. Rxd5 {[%clk 0:01:37.4]} 28... Qb7 {[%clk 0:02:41.9]} 29.
Qf3 {[%clk 0:01:25.2]} 29... exd5 {[%clk 0:02:09.7]} 30. Rxe8+ {[%clk
0:01:14.2]} 30... Kf7 {[%clk 0:02:08.1]} 31. Re5 {[%clk 0:01:12.1]} 31... Rd6
{[%clk 0:01:57]} 32. Qh5+ {[%clk 0:01:09.6]} 32... Kg8 {[%clk 0:01:46]} 33. Re8+
{[%clk 0:00:53.3]} 33... Kh7 {[%clk 0:01:44.7]} 34. Qf5+ {[%clk 0:00:48.1]}
34... Rg6 {[%clk 0:01:28.5]} 35. Qf8 {[%clk 0:00:41.8]} 35... Rf6 {[%clk
0:01:22]} 36. Qxc5 {[%clk 0:00:26.2]} 36... Qf7 {[%clk 0:01:15.6]} 37. Qc8
{[%clk 0:00:22.7]} 37... Kg6 {[%clk 0:00:47.4]} 38. g4 {[%clk 0:00:15.8]} 38...
Rxf4 {[%clk 0:00:32.8]} 39. Bxf4 {[%clk 0:00:13.8]} 39... Qxf4 {[%clk 0:00:32]}
40. Qe6+ {[%clk 0:00:13.2]} 40... Kh7 {[%clk 0:00:26.5]} 41. Qf5+ {[%clk
0:00:12.5]} 41... Qxf5 {[%clk 0:00:25.1]} 42. gxf5 {[%clk 0:00:12]} 42... g6
{[%clk 0:00:22.6]} 43. Re7+ {[%clk 0:00:11.9]} 43... Kg8 {[%clk 0:00:21.6]} 44.
Rxa7 {[%clk 0:00:11.7]} 44... gxf5 {[%clk 0:00:20]} 45. Rb7 {[%clk 0:00:11.6]}
45... Kf8 {[%clk 0:00:19.4]} 46. a4 {[%clk 0:00:11.4]} 46... Ke8 {[%clk
0:00:18.6]} 47. a5 {[%clk 0:00:11.3]} 47... Kd8 {[%clk 0:00:18.1]} 48. a6 {[%clk
0:00:11.2]} 48... Kc8 {[%clk 0:00:17.6]} 49. Rb4 {[%clk 0:00:10.1]} 49... f4
{[%clk 0:00:16.9]} 50. a7 {[%clk 0:00:10]} 50... f3+ {[%clk 0:00:16.5]} 51. Kxf3
{[%clk 0:00:09.1]} 51... Kc7 {[%clk 0:00:16.4]} 52. a8=Q {[%clk 0:00:07.5]}
52... Kd6 {[%clk 0:00:15.5]} 53. Qb8+ {[%clk 0:00:07.4]} 53... Ke6 {[%clk
0:00:14.3]} 54. Rb6+ {[%clk 0:00:07.3]} 54... Kf5 {[%clk 0:00:13.8]} 55. Rc6
{[%clk 0:00:06]} 55... Kg5 {[%clk 0:00:13.1]} 56. Qe8 {[%clk 0:00:04.2]} 56...
h5 {[%clk 0:00:13]} 57. Qd7 {[%clk 0:00:03.4]} 57... h4 {[%clk 0:00:12.6]} 58.
Re6 {[%clk 0:00:03.3]} 58... h3 {[%clk 0:00:11.8]} 59. Qf7 {[%clk 0:00:03.2]}
59... h2 {[%clk 0:00:10.6]} 60. Rg6+ {[%clk 0:00:03.1]} 60... Kh5 {[%clk
0:00:09.7]} 61. Qh7# {[%clk 0:00:03]} 1-0

[Event "Live Chess"]
[Site "Chess.com"]
[Date "2023.05.20"]
[Round "-"]
[White "mliszewski"]
[Black "wot-not"]
[Result "1-0"]
[WhiteElo "1881"]
[BlackElo "1483"]
[TimeControl "300"]
[EndTime "12:16:29 PDT"]
[Termination "mliszewski won by resignation"]

1. d4 {[%clk 0:04:59.6]} 1... Nf6 {[%clk 0:04:57.2]} 2. Bg5 {[%clk 0:04:58.5]}
2... Ne4 {[%clk 0:04:55.3]} 3. h4 {[%clk 0:04:57.5]} 3... Nxg5 {[%clk
0:04:53.9]} 4. hxg5 {[%clk 0:04:56.9]} 4... h6 {[%clk 0:04:53.5]} 5. Qd3 {[%clk
0:04:52.1]} 5... d5 {[%clk 0:04:36.4]} 6. g6 {[%clk 0:04:50.9]} 6... Be6 {[%clk
0:04:28.5]} 7. Nf3 {[%clk 0:04:43.8]} 7... Nd7 {[%clk 0:04:26.4]} 8. Nc3 {[%clk
0:04:41.1]} 8... c6 {[%clk 0:04:25.5]} 9. gxf7+ {[%clk 0:04:36.6]} 9... Bxf7
{[%clk 0:04:23.9]} 10. e4 {[%clk 0:04:33.5]} 10... dxe4 {[%clk 0:04:14]} 11.
Nxe4 {[%clk 0:04:32.2]} 11... Nf6 {[%clk 0:04:12.6]} 12. Nc5 {[%clk 0:04:27.5]}
12... b6 {[%clk 0:03:48.8]} 13. Na6 {[%clk 0:04:10.4]} 13... e6 {[%clk
0:03:17.3]} 14. Ne5 {[%clk 0:04:09.2]} 14... c5 {[%clk 0:02:57.1]} 15. Nxf7
{[%clk 0:04:06.8]} 15... Kxf7 {[%clk 0:02:55.5]} 16. O-O-O {[%clk 0:03:58.4]}
16... Qxd4 {[%clk 0:02:51.6]} 17. Qf3 {[%clk 0:03:51.1]} 17... Qe4 {[%clk
0:02:43]} 18. Qb3 {[%clk 0:03:36.4]} 18... Qf4+ {[%clk 0:02:15.4]} 19. Kb1
{[%clk 0:03:34]} 19... Qxf2 {[%clk 0:02:09.7]} 20. Nc7 {[%clk 0:03:32.6]} 20...
Rb8 {[%clk 0:01:59.2]} 21. Qxe6+ {[%clk 0:03:30.8]} 21... Kg6 {[%clk 0:01:58.2]}
22. Bd3+ {[%clk 0:03:29.8]} 1-0

[Event "Live Chess"]
[Site "Chess.com"]
[Date "2023.05.20"]
[Round "-"]
[White "Hacker_2009"]
[Black "Man-Del-Brot"]
[Result "1-0"]
[WhiteElo "1921"]
[BlackElo "1174"]
[TimeControl "300"]
[EndTime "12:16:38 PDT"]
[Termination "Hacker_2009 won on time"]

1. d4 {[%clk 0:04:59]} 1... Nf6 {[%clk 0:04:57.4]} 2. Nf3 {[%clk 0:04:58.1]}
2... d5 {[%clk 0:04:55.7]} 3. e3 {[%clk 0:04:56.6]} 3... Nbd7 {[%clk 0:04:50.5]}
4. c4 {[%clk 0:04:54.7]} 4... h6 {[%clk 0:04:46]} 5. Nc3 {[%clk 0:04:51.3]} 5...
c6 {[%clk 0:04:43.7]} 6. cxd5 {[%clk 0:04:43.4]} 6... Nxd5 {[%clk 0:04:37.1]} 7.
Nxd5 {[%clk 0:04:42.1]} 7... cxd5 {[%clk 0:04:36.1]} 8. Be2 {[%clk 0:04:42]}
8... Nf6 {[%clk 0:04:33]} 9. O-O {[%clk 0:04:41.1]} 9... Bf5 {[%clk 0:04:29.9]}
10. b3 {[%clk 0:04:38.1]} 10... e6 {[%clk 0:04:28.6]} 11. Bb2 {[%clk 0:04:37.5]}
11... Bd6 {[%clk 0:04:24.4]} 12. Bb5+ {[%clk 0:04:37]} 12... Nd7 {[%clk
0:04:19]} 13. Rc1 {[%clk 0:04:32]} 13... a6 {[%clk 0:04:16.4]} 14. Bd3 {[%clk
0:04:31.4]} 14... Be4 {[%clk 0:04:06.8]} 15. Bxe4 {[%clk 0:04:29.7]} 15... dxe4
{[%clk 0:04:05.4]} 16. Nd2 {[%clk 0:04:27.6]} 16... Nf6 {[%clk 0:03:55.9]} 17.
Qc2 {[%clk 0:04:22.3]} 17... O-O {[%clk 0:03:29.6]} 18. Nxe4 {[%clk 0:04:17.3]}
18... Nxe4 {[%clk 0:03:26.4]} 19. Qxe4 {[%clk 0:04:15.2]} 19... Qd7 {[%clk
0:03:00.2]} 20. Qg4 {[%clk 0:04:06.7]} 20... f5 {[%clk 0:02:46.3]} 21. Qg6
{[%clk 0:04:04.3]} 21... Rf6 {[%clk 0:02:39.6]} 22. Qh5 {[%clk 0:04:01.2]} 22...
Qf7 {[%clk 0:02:24]} 23. Qf3 {[%clk 0:03:57.7]} 23... h5 {[%clk 0:02:04.3]} 24.
h3 {[%clk 0:03:53.5]} 24... Qg6 {[%clk 0:01:48.5]} 25. Qxb7 {[%clk 0:03:50.1]}
25... Raf8 {[%clk 0:01:42.3]} 26. Qxa6 {[%clk 0:03:48.4]} 26... e5 {[%clk
0:01:34.9]} 27. Qc4+ {[%clk 0:03:41.6]} 27... Kh7 {[%clk 0:01:29.7]} 28. dxe5
{[%clk 0:03:40]} 28... Qxg2+ {[%clk 0:00:59.3]} 29. Kxg2 {[%clk 0:03:37.5]}
29... Rg6+ {[%clk 0:00:57.7]} 30. Kf3 {[%clk 0:03:35.8]} 30... Be7 {[%clk
0:00:42.8]} 31. Rg1 {[%clk 0:03:32.6]} 31... Rxg1 {[%clk 0:00:32.8]} 32. Rxg1
{[%clk 0:03:29.3]} 32... Ra8 {[%clk 0:00:24.5]} 33. Qf7 {[%clk 0:03:26.9]} 1-0

[Event "Live Chess"]
[Site "Chess.com"]
[Date "2023.05.20"]
[Round "-"]
[White "dudeasy"]
[Black "WilliamofOrange16th"]
[Result "0-1"]
[WhiteElo "994"]
[BlackElo "1865"]
[TimeControl "300"]
[EndTime "12:16:38 PDT"]
[Termination "WilliamofOrange16th won by resignation"]

1. Nf3 {[%clk 0:04:59]} 1... d6 {[%clk 0:04:58.7]} 2. d4 {[%clk 0:04:56]} 2...
Nf6 {[%clk 0:04:57.7]} 3. g3 {[%clk 0:04:53.9]} 3... Nbd7 {[%clk 0:04:56.8]} 4.
Bg2 {[%clk 0:04:51.8]} 4... e5 {[%clk 0:04:56.5]} 5. dxe5 {[%clk 0:04:50.5]}
5... dxe5 {[%clk 0:04:56.4]} 6. Nbd2 {[%clk 0:04:46.9]} 6... c6 {[%clk
0:04:54.6]} 7. O-O {[%clk 0:04:45.1]} 7... Bc5 {[%clk 0:04:53.1]} 8. c4 {[%clk
0:04:42]} 8... O-O {[%clk 0:04:50.9]} 9. b3 {[%clk 0:04:38.8]} 9... h6 {[%clk
0:04:38.1]} 10. Bb2 {[%clk 0:04:35.2]} 10... e4 {[%clk 0:04:28.9]} 11. Nh4
{[%clk 0:04:31]} 11... Re8 {[%clk 0:04:22.7]} 12. Nf5 {[%clk 0:04:20]} 12... Nf8
{[%clk 0:04:19.4]} 13. Nh4 {[%clk 0:03:55]} 13... e3 {[%clk 0:03:24.7]} 14. fxe3
{[%clk 0:03:46.4]} 14... Bxe3+ {[%clk 0:03:23.5]} 15. Kh1 {[%clk 0:03:42.6]}
15... Bd4 {[%clk 0:03:21.8]} 16. Bxd4 {[%clk 0:03:39.5]} 16... Qxd4 {[%clk
0:03:21.7]} 17. Nhf3 {[%clk 0:03:36.7]} 17... Qd6 {[%clk 0:03:15.3]} 18. Re1
{[%clk 0:03:32.2]} 18... Bg4 {[%clk 0:03:10.2]} 19. Qc2 {[%clk 0:03:27.7]} 19...
Rad8 {[%clk 0:03:05.4]} 20. Rad1 {[%clk 0:03:24.5]} 20... Qc7 {[%clk 0:03:02.8]}
21. Nf1 {[%clk 0:03:01.5]} 21... Bh5 {[%clk 0:02:56.2]} 22. Rxd8 {[%clk
0:02:46.1]} 22... Rxd8 {[%clk 0:02:56.1]} 23. N1d2 {[%clk 0:02:43.8]} 23... Bg6
{[%clk 0:02:53.3]} 24. Qc1 {[%clk 0:02:40.3]} 24... Qa5 {[%clk 0:02:40.8]} 25.
Qb2 {[%clk 0:02:33.4]} 25... Ne6 {[%clk 0:02:32.7]} 26. Rd1 {[%clk 0:02:26.4]}
26... Ne4 {[%clk 0:02:25.8]} 27. Nxe4 {[%clk 0:02:12.3]} 27... Rxd1+ {[%clk
0:02:23.7]} 28. Ng1 {[%clk 0:02:04]} 0-1

[Event "Live Chess"]
[Site "Chess.com"]
[Date "2023.05.20"]
[Round "-"]
[White "viktorskliarov"]
[Black "ossie57"]
[Result "1-0"]
[WhiteElo "2650"]
[BlackElo "1901"]
[TimeControl "300"]
[EndTime "12:16:41 PDT"]
[Termination "viktorskliarov won by resignation"]

1. e4 {[%clk 0:04:57.6]} 1... d6 {[%clk 0:04:58.4]} 2. d4 {[%clk 0:04:50.2]}
2... Nf6 {[%clk 0:04:57.4]} 3. Nc3 {[%clk 0:04:49.6]} 3... Nbd7 {[%clk
0:04:56.7]} 4. f3 {[%clk 0:04:48.1]} 4... e5 {[%clk 0:04:55.8]} 5. Nge2 {[%clk
0:04:46.4]} 5... Be7 {[%clk 0:04:55.2]} 6. Be3 {[%clk 0:04:45]} 6... c6 {[%clk
0:04:54.3]} 7. g4 {[%clk 0:04:43.4]} 7... h6 {[%clk 0:04:52.9]} 8. Ng3 {[%clk
0:04:42.4]} 8... Qc7 {[%clk 0:04:23.4]} 9. Qd2 {[%clk 0:04:34.1]} 9... exd4
{[%clk 0:04:14.2]} 10. Bxd4 {[%clk 0:04:30.5]} 10... Ne5 {[%clk 0:04:13.3]} 11.
Be2 {[%clk 0:04:28.9]} 11... Bd7 {[%clk 0:03:56.3]} 12. O-O-O {[%clk 0:04:25]}
12... c5 {[%clk 0:03:51.3]} 13. Be3 {[%clk 0:04:15.9]} 13... a6 {[%clk 0:03:44]}
14. Nf5 {[%clk 0:04:10.8]} 14... Bxf5 {[%clk 0:03:37.6]} 15. gxf5 {[%clk
0:04:10.7]} 15... Qa5 {[%clk 0:03:25.5]} 16. Rhg1 {[%clk 0:04:04]} 16... b5
{[%clk 0:03:01.2]} 17. Kb1 {[%clk 0:03:59.8]} 17... Rg8 {[%clk 0:02:54.4]} 18.
f4 {[%clk 0:03:22.7]} 18... Nc4 {[%clk 0:02:53]} 19. Bxc4 {[%clk 0:03:17.6]}
19... bxc4 {[%clk 0:02:50.9]} 20. e5 {[%clk 0:03:17.1]} 20... Rb8 {[%clk
0:02:06.3]} 21. Ka1 {[%clk 0:02:52.2]} 21... dxe5 {[%clk 0:01:50.2]} 22. fxe5
{[%clk 0:02:45.8]} 22... Qb4 {[%clk 0:01:32.1]} 23. Rb1 {[%clk 0:02:30.9]} 23...
Nd7 {[%clk 0:01:25]} 24. Qd5 {[%clk 0:02:21.5]} 24... Bd8 {[%clk 0:00:45.7]} 25.
e6 {[%clk 0:02:07.4]} 25... fxe6 {[%clk 0:00:31.2]} 26. Qxe6+ {[%clk 0:02:00]}
26... Kf8 {[%clk 0:00:27.6]} 27. Qxd7 {[%clk 0:01:50.1]} 27... Bf6 {[%clk
0:00:25.8]} 28. Qd6+ {[%clk 0:01:43]} 28... Be7 {[%clk 0:00:24.8]} 29. Qxe7+
{[%clk 0:01:38]} 29... Kxe7 {[%clk 0:00:23.2]} 30. Nd5+ {[%clk 0:01:37.1]} 30...
Kd6 {[%clk 0:00:20]} 31. Nxb4 {[%clk 0:01:37]} 31... Rxb4 {[%clk 0:00:19.7]} 32.
Bxh6 {[%clk 0:01:33.4]} 32... Rh8 {[%clk 0:00:17.9]} 33. Bf4+ {[%clk 0:01:29.8]}
33... Kc6 {[%clk 0:00:15.4]} 34. Rg6+ {[%clk 0:01:28.3]} 34... Kb7 {[%clk
0:00:13.1]} 35. Rxg7+ {[%clk 0:01:27.6]} 35... Kc6 {[%clk 0:00:12.4]} 36. f6
{[%clk 0:01:26.1]} 1-0

[Event "Live Chess"]
[Site "Chess.com"]
[Date "2023.05.20"]
[Round "-"]
[White "LiamClery2020"]
[Black "OleksiyJr1"]
[Result "1-0"]
[WhiteElo "2086"]
[BlackElo "933"]
[TimeControl "300"]
[EndTime "12:16:43 PDT"]
[Termination "LiamClery2020 won by resignation"]

1. e4 {[%clk 0:04:59.8]} 1... c5 {[%clk 0:04:57.6]} 2. Nf3 {[%clk 0:04:58.8]}
2... Nc6 {[%clk 0:04:57.2]} 3. Bb5 {[%clk 0:04:58.2]} 3... d6 {[%clk 0:04:54.3]}
4. O-O {[%clk 0:04:56.2]} 4... e5 {[%clk 0:04:52]} 5. Bxc6+ {[%clk 0:04:54.7]}
5... bxc6 {[%clk 0:04:50.6]} 6. Re1 {[%clk 0:04:54.6]} 6... Bb7 {[%clk
0:04:49.4]} 7. c3 {[%clk 0:04:52.6]} 7... Nf6 {[%clk 0:04:49]} 8. d4 {[%clk
0:04:51.8]} 8... cxd4 {[%clk 0:04:45]} 9. cxd4 {[%clk 0:04:51.7]} 9... Be7
{[%clk 0:04:40.1]} 10. dxe5 {[%clk 0:04:50.4]} 10... dxe5 {[%clk 0:04:38.3]} 11.
Qxd8+ {[%clk 0:04:50.3]} 11... Rxd8 {[%clk 0:04:36.8]} 12. Nxe5 {[%clk
0:04:50.2]} 12... Bd6 {[%clk 0:04:35]} 13. Nf3 {[%clk 0:04:48.7]} 13... O-O
{[%clk 0:04:33.6]} 14. e5 {[%clk 0:04:47.6]} 14... Bxe5 {[%clk 0:04:31.9]} 15.
Nxe5 {[%clk 0:04:46.9]} 15... Rfe8 {[%clk 0:04:30.5]} 16. Nc3 {[%clk 0:04:45.6]}
16... Nd5 {[%clk 0:04:25.6]} 17. Nxd5 {[%clk 0:04:44.4]} 17... cxd5 {[%clk
0:04:25.5]} 18. Bf4 {[%clk 0:04:43.8]} 18... f6 {[%clk 0:04:24.5]} 19. Nf3
{[%clk 0:04:42.5]} 19... Rxe1+ {[%clk 0:04:22.9]} 20. Rxe1 {[%clk 0:04:42.4]}
20... d4 {[%clk 0:04:22.4]} 21. Rd1 {[%clk 0:04:41.4]} 21... Bxf3 {[%clk
0:04:21.2]} 22. gxf3 {[%clk 0:04:41.3]} 22... Rb8 {[%clk 0:04:18.1]} 23. Rxd4
{[%clk 0:04:40.3]} 23... Rxb2 {[%clk 0:04:17.7]} 24. Ra4 {[%clk 0:04:39.9]}
24... Rb7 {[%clk 0:04:11.9]} 25. Be3 {[%clk 0:04:38.7]} 25... Re7 {[%clk
0:04:07.6]} 26. Rxa7 {[%clk 0:04:37.6]} 1-0

[Event "Live Chess"]
[Site "Chess.com"]
[Date "2023.05.20"]
[Round "-"]
[White "NatashaRegan"]
[Black "TobyQuaite"]
[Result "0-1"]
[WhiteElo "1819"]
[BlackElo "1675"]
[TimeControl "300"]
[EndTime "12:16:45 PDT"]
[Termination "TobyQuaite won by resignation"]

1. e4 {[%clk 0:04:54.1]} 1... e6 {[%clk 0:04:59.1]} 2. Nf3 {[%clk 0:04:48.9]}
2... d5 {[%clk 0:04:58.6]} 3. exd5 {[%clk 0:04:47]} 3... exd5 {[%clk 0:04:58.5]}
4. g3 {[%clk 0:04:42.9]} 4... Nf6 {[%clk 0:04:55.7]} 5. Bg2 {[%clk 0:04:41.9]}
5... Bd6 {[%clk 0:04:49.5]} 6. O-O {[%clk 0:04:40.1]} 6... O-O {[%clk
0:04:47.8]} 7. b3 {[%clk 0:04:30.4]} 7... Bg4 {[%clk 0:04:45.5]} 8. h3 {[%clk
0:04:26]} 8... Bh5 {[%clk 0:04:44]} 9. Bb2 {[%clk 0:04:23.2]} 9... Nbd7 {[%clk
0:04:42.3]} 10. g4 {[%clk 0:04:20.5]} 10... Bg6 {[%clk 0:04:40]} 11. d3 {[%clk
0:04:17]} 11... c6 {[%clk 0:04:37.7]} 12. Nbd2 {[%clk 0:04:15.8]} 12... Re8
{[%clk 0:04:33.3]} 13. Nh4 {[%clk 0:04:05.6]} 13... Ne5 {[%clk 0:04:18.1]} 14.
g5 {[%clk 0:03:53.2]} 14... Nh5 {[%clk 0:04:10.8]} 15. f4 {[%clk 0:03:38.5]}
15... Nd7 {[%clk 0:03:53.6]} 16. f5 {[%clk 0:03:29.7]} 16... Qxg5 {[%clk
0:03:52.4]} 17. Ndf3 {[%clk 0:03:18.6]} 17... Qe3+ {[%clk 0:03:40.1]} 18. Rf2
{[%clk 0:03:10.1]} 18... Bg3 {[%clk 0:03:37.6]} 19. fxg6 {[%clk 0:02:51.2]}
19... Bxf2+ {[%clk 0:03:30.7]} 20. Kh2 {[%clk 0:02:48.3]} 20... Qf4+ {[%clk
0:03:24]} 21. Kh1 {[%clk 0:02:45.4]} 21... Ng3+ {[%clk 0:03:23.4]} 22. Kh2
{[%clk 0:02:43.8]} 0-1

[Event "Live Chess"]
[Site "Chess.com"]
[Date "2023.05.20"]
[Round "-"]
[White "Conradical12"]
[Black "gmnorfolk"]
[Result "0-1"]
[WhiteElo "1566"]
[BlackElo "2024"]
[TimeControl "300"]
[EndTime "12:17:01 PDT"]
[Termination "gmnorfolk won by checkmate"]

1. e4 {[%clk 0:04:56.7]} 1... e5 {[%clk 0:04:59]} 2. Nf3 {[%clk 0:04:54.3]} 2...
Nc6 {[%clk 0:04:58.5]} 3. Bc4 {[%clk 0:04:51.2]} 3... Nf6 {[%clk 0:04:56.6]} 4.
d3 {[%clk 0:04:50.5]} 4... Bc5 {[%clk 0:04:55.6]} 5. c3 {[%clk 0:04:49.9]} 5...
O-O {[%clk 0:04:55.2]} 6. a4 {[%clk 0:04:47.9]} 6... d5 {[%clk 0:04:49.2]} 7.
exd5 {[%clk 0:04:45.6]} 7... Nxd5 {[%clk 0:04:49.1]} 8. O-O {[%clk 0:04:41.1]}
8... Bg4 {[%clk 0:04:47.1]} 9. Nbd2 {[%clk 0:04:38.5]} 9... Nf4 {[%clk
0:04:44.7]} 10. Ne4 {[%clk 0:04:30.5]} 10... Be7 {[%clk 0:04:38.7]} 11. Bxf4
{[%clk 0:04:27.9]} 11... exf4 {[%clk 0:04:38.6]} 12. h3 {[%clk 0:04:10.6]} 12...
Bh5 {[%clk 0:04:36.8]} 13. Qe2 {[%clk 0:03:50.3]} 13... Ne5 {[%clk 0:04:33.2]}
14. Rae1 {[%clk 0:03:44.8]} 14... Kh8 {[%clk 0:04:24.1]} 15. Neg5 {[%clk
0:03:38.2]} 15... Bd6 {[%clk 0:03:56.1]} 16. d4 {[%clk 0:03:22.1]} 16... Nxc4
{[%clk 0:03:49.5]} 17. Qxc4 {[%clk 0:03:18.7]} 17... h6 {[%clk 0:03:49.1]} 18.
Ne4 {[%clk 0:02:47]} 18... Bxf3 {[%clk 0:03:47.6]} 19. gxf3 {[%clk 0:02:45.1]}
19... Be7 {[%clk 0:03:38.9]} 20. Kh2 {[%clk 0:02:40.2]} 20... b6 {[%clk
0:03:35.6]} 21. Qc6 {[%clk 0:02:38]} 21... f5 {[%clk 0:03:32.6]} 22. Nd2 {[%clk
0:02:27.6]} 22... Bd6 {[%clk 0:03:30.7]} 23. Re6 {[%clk 0:02:25.5]} 23... Qh4
{[%clk 0:03:25.7]} 24. Nc4 {[%clk 0:02:16.3]} 24... Rad8 {[%clk 0:03:18.5]} 25.
Nxd6 {[%clk 0:02:14]} 25... cxd6 {[%clk 0:03:17.5]} 26. Rxd6 {[%clk 0:02:12.6]}
26... Rxd6 {[%clk 0:03:16.6]} 27. Qxd6 {[%clk 0:02:11.5]} 27... Rf6 {[%clk
0:03:16.1]} 28. Qd8+ {[%clk 0:02:10.4]} 28... Kh7 {[%clk 0:03:15.6]} 29. d5
{[%clk 0:02:02.4]} 29... Qh5 {[%clk 0:03:08.5]} 30. d6 {[%clk 0:02:00.2]} 30...
Qxf3 {[%clk 0:03:07.4]} 31. d7 {[%clk 0:01:55.8]} 31... Rg6 {[%clk 0:03:03.1]}
32. Rg1 {[%clk 0:01:43]} 32... Qxf2+ {[%clk 0:03:00.9]} 33. Kh1 {[%clk
0:01:37.7]} 33... Rxg1# {[%clk 0:02:59.3]} 0-1

[Event "Live Chess"]
[Site "Chess.com"]
[Date "2023.05.20"]
[Round "-"]
[White "ProfPoisson"]
[Black "Zeraora719"]
[Result "1-0"]
[WhiteElo "1071"]
[BlackElo "763"]
[TimeControl "300"]
[EndTime "12:17:01 PDT"]
[Termination "ProfPoisson won by checkmate"]

1. e4 {[%clk 0:04:54.6]} 1... e5 {[%clk 0:04:58.9]} 2. Nf3 {[%clk 0:04:51.6]}
2... Nc6 {[%clk 0:04:57.3]} 3. d4 {[%clk 0:04:37.2]} 3... Nxd4 {[%clk
0:04:55.1]} 4. Nxd4 {[%clk 0:04:34.3]} 4... exd4 {[%clk 0:04:53.4]} 5. Qxd4
{[%clk 0:04:30.3]} 5... Bb4+ {[%clk 0:04:51.9]} 6. Qxb4 {[%clk 0:04:24.6]} 6...
d6 {[%clk 0:04:48]} 7. Nc3 {[%clk 0:04:17.2]} 7... c5 {[%clk 0:04:46.3]} 8. Qc4
{[%clk 0:04:12.1]} 8... Be6 {[%clk 0:04:43.9]} 9. Qd3 {[%clk 0:04:07]} 9... f5
{[%clk 0:04:38.9]} 10. exf5 {[%clk 0:04:03.9]} 10... Bd5 {[%clk 0:04:28.8]} 11.
Qxd5 {[%clk 0:04:01]} 11... b6 {[%clk 0:04:20.1]} 12. Bb5+ {[%clk 0:03:58]}
12... Kf8 {[%clk 0:04:02.1]} 13. O-O {[%clk 0:03:49.8]} 13... Qh4 {[%clk
0:03:54.1]} 14. Qxa8+ {[%clk 0:03:45]} 14... Kf7 {[%clk 0:03:51.1]} 15. Qe8+
{[%clk 0:03:42.1]} 15... Kf6 {[%clk 0:03:48.9]} 16. Qe6# {[%clk 0:03:37.8]} 1-0

[Event "Live Chess"]
[Site "Chess.com"]
[Date "2023.05.20"]
[Round "-"]
[White "JoshMcK"]
[Black "JackRudd"]
[Result "0-1"]
[WhiteElo "1561"]
[BlackElo "2480"]
[TimeControl "300"]
[EndTime "12:17:02 PDT"]
[Termination "JackRudd won by resignation"]

1. e4 {[%clk 0:04:59.2]} 1... c6 {[%clk 0:04:58.3]} 2. d4 {[%clk 0:04:57.5]}
2... d5 {[%clk 0:04:57.4]} 3. e5 {[%clk 0:04:57.1]} 3... c5 {[%clk 0:04:56.1]}
4. Nf3 {[%clk 0:04:54.9]} 4... Nc6 {[%clk 0:04:54.5]} 5. dxc5 {[%clk 0:04:53.8]}
5... Bg4 {[%clk 0:04:50.9]} 6. Be2 {[%clk 0:04:50]} 6... e6 {[%clk 0:04:48.9]}
7. Bf4 {[%clk 0:04:42.2]} 7... Bxc5 {[%clk 0:04:46.9]} 8. a3 {[%clk 0:04:36.7]}
8... Nge7 {[%clk 0:04:45.5]} 9. O-O {[%clk 0:04:35]} 9... Ng6 {[%clk 0:04:44]}
10. b4 {[%clk 0:04:28.5]} 10... Bxf2+ {[%clk 0:04:38.5]} 11. Rxf2 {[%clk
0:04:26.3]} 11... Nxf4 {[%clk 0:04:37.7]} 12. Bb5 {[%clk 0:04:23.9]} 12... Qb6
{[%clk 0:04:36]} 13. Bxc6+ {[%clk 0:04:19]} 13... bxc6 {[%clk 0:04:34.9]} 14.
Nbd2 {[%clk 0:04:14.7]} 14... O-O {[%clk 0:04:29.2]} 15. h3 {[%clk 0:03:59.4]}
15... Bxh3 {[%clk 0:04:26.6]} 16. gxh3 {[%clk 0:03:57.3]} 16... Nxh3+ {[%clk
0:04:25.8]} 17. Kh1 {[%clk 0:03:53.2]} 17... Nxf2+ {[%clk 0:04:24.8]} 0-1